{"text_format":"1","workbook":"xlsx","n_sheets":6,"sheets":["Республиканские заказники","Республиканские заказники.","Республиканские памятники","Местные заказники","Местные памятники","Сводная таблица"],"not_rendered":{"charts":0,"images":0,"macros":0,"external_links":0,"defined_names":0,"comments":0,"pivot_tables":0},"unopened":[],"bounds":{"document_bytes":16777216,"sheet_cells":100000,"rows_first":2000,"rows_last":500,"rows_between":2000,"halvings":0,"cell_chars":16384,"cell_head_chars":4096},"cells_cut":0,"cells_raw":0,"read":"whole","date_system":"1900"}

{"sheet":"Республиканские заказники","index":0,"n_rows":29,"n_cols":5,"rows_kept":29,"cut":false,"hidden":false,"merged":[[28,0,28,1],[2,0,2,4],[14,0,14,4],[19,0,19,4],[27,0,27,1]]}
["№","Наименование","Дата принятия","Район","Площадь, га"]
[1,2,3,4,5]
["Гидрологические"]
["1.                   "," «Белое»","Постановление Совета Министров № 1833 от 27.12.2007 г.","Глубокский и Ушачский",483.2]
["2.                   "," «Болото Мох»","Постановление Совета Министров № 1833 от 27.12.2007 г.","Миорский",4602.03]
["3.                   "," «Глубокое–Большое Островито»","Постановление Совета Министров № 1833 от 27.12.2007 г.","Полоцкий",1353.38]
["4.                   "," «Долгое»","Постановление Совета Министров № 1833 от 27.12.2007 г.","Глубокский",644.45000000000005]
["5.                   "," «Корытенский Мох»","Постановление Совета Министров № 1833 от 27.12.2007 г.","Городокский",1388.9]
["6.                   "," «Кривое»","Постановление Совета Министров № 1833 от 27.12.2007 г.","Ушачский",1063.72]
["7.                   "," «Ричи»","Постановление Совета Министров № 1833 от 27.12.2007 г.","Браславский",1390.62]
["8.                   "," «Сосно»","Постановление Совета Министров № 1833 от 27.12.2007 г.","Шумилинский",168.33]
["9.                   ","Сервечь","Постановление Совета Министров № 981 от 29.07.1997 г.","Глубокский и Докшицкий",9068]
["10.               ","Верхневилейский","Постановление Кабинета Министров № 201 от 21.03.1996","Докшицкий",753]
["11.    ","Швакшты","Постановление Кабинета Министров № 631 от 25.09.1996","Поставский",5603]
["Биологические"]
["12.               "," «Запольский»","Постановление Совета Министров № 1833 от 27.12.2007 г.","Витебский",794.04]
["13.               "," «Лонно»","Постановление Совета Министров № 1833 от 27.12.2007 г.","Полоцкий",443.07]
["14.               "," «Мошно»","Постановление Совета Министров № 1833 от 27.12.2007 г.","Витебский",398.76]
["15.               "," «Чистик»","Постановление Совета Министров № 1833 от 27.12.2007 г.","Витебский",299.98]
["Ландшафтные"]
["16.               "," «Ельня»","Постановление Совета Министров № 1833 от 27.12.2007 г.","Миорский и Шарковщинский",25301]
["17.               ","Селява","Постановление Совета Министров № 99 от 25.02.1993 г.","Чашникский",328]
["18.               ","Бабиновичский","Постановление Совета Министров № 1458 от 17.09.1998 г.","Лиозненский",10547]
["19.               ","Козьянский","Постановление Совета Министров № 1765 от 11.11.1999 г.","Полоцкий и Шумилинский",26060]
["20.               ","Синьша","Постановление Совета Министров № 202 от 21.03.1996 г.","Россонский",13398]
["21.               ","Освейский","Постановление Совета Министров № 4 от 3.01.2000 г.","Верхнедвинский",27754]
["22.               ","Красный Бор","Постановление Совета Министров № 982 от 29.07.1997 г.","Верхнедвинский и Россонский",34231]
["Итого",null,null,null,{"$f":"SUM(A4:E27)","v":166073.47999999998}]
["% от территории области",null,null,null,{"$f":"E28/4004839","v":4.1468203840404068E-2}]

{"sheet":"Республиканские заказники.","index":1,"n_rows":29,"n_cols":7,"rows_kept":29,"cut":false,"hidden":false,"merged":[[28,1,28,2],[0,1,0,5],[3,1,3,5],[15,1,15,5],[20,1,20,5]]}
[null,"Заказники республиканского значения на 1.01.2014"]
[null,"№","Наименование","Дата принятия","Район","Площадь,           (га)"]
[null,1,2,3,4,5]
[null,"Гидрологические"]
[null,1,"“Белое”","Постановление Совета Министров № 1833 от 27.12.2007 г.","Глубокский (241,2 га) и Ушачский 242,0 га)",483.2]
[null,2,"“Болото Мох”","Постановление Совета Министров № 1833 от 27.12.2007 г.","Миорский",4602.03]
[null,3,"“Глубокое-Большое Островито”","Постановление Совета Министров № 1833 от 27.12.2007 г.","Полоцкий",1353.38]
[null,4,"“Долгое”","Постановление Совета Министров № 1833 от 27.12.2007 г.","Глубокский",644.45000000000005]
[null,5,"“Корытенский Мох”","Постановление Совета Министров № 1833 от 27.12.2007 г.","Городокский",1388.9]
[null,6,"“Кривое”","Постановление Совета Министров № 1833 от 27.12.2007 г.","Ушачский",1063.72]
[null,7,"“Ричи”","Постановление Совета Министров № 1833 от 27.12.2007 г.","Браславский",1390.62]
[null,8,"“Сосно”","Постановление Совета Министров № 1833 от 27.12.2007 г.","Шумилинский",168.33]
[null,9,"“Сервечь”","Постановление Совета Министров № 981 от 29.07.1997 г.","Глубокский (1 188 га)  и Докшицкий (7 880 га) ",9068]
[null,10,"“Верхневилейский”","Постановление Кабинета Министров № 201 от 21.03.1996 н.","Докшицкий",753]
[null,11,"“Швакшты”","Постановление Кабинета Министров № 631 от 25.09.1996 г. ","Поставский",5603,{"$f":"SUM(F5:F15)","v":26518.629999999997}]
[null,"Биологические"]
[null,12,"“Запольский”","Постановление Совета Министров № 1833 от 27.12.2007 г.","Витебский",794.04]
[null,13,"“Лонно”","Постановление Совета Министров № 1833 от 27.12.2007 г.","Полоцкий",443.07]
[null,14,"“Мошно”","Постановление Совета Министров № 1833 от 27.12.2007 г.","Витебский",398.76]
[null,15,"“Чистик”","Постановление Совета Министров № 1833 от 27.12.2007 г.","Витебский",299.98]
[null,"Ландшафтные"]
[null,16,"“Ельня”","Постановление Совета Министров № 1833 от 27.12.2007 г.","Миорский (24 198,7 га) и Шарковщинский (1 102,3 га)",25301]
[null,17,"“Селява”","Постановление Совета Министров № 99 от 25.02.1993 г.","Чашникский",328]
[null,18,"“Бабиновичский”","Постановление Совета Министров № 1458 от 17.09.1998 г.","Лиозненский",10547]
[null,19,"“Козьянский”","Постановление Совета Министров № 1765 от 11.11.1999 г.","Полоцкий (5298,6 га) и Шумилинский (20761,4 га)",26060]
[null,20,"“Синьша”","Постановление Совета Министров № 202 от 21.03.1996 г.","Россонский",13398]
[null,21,"“Освейский”","Постановление Совета Министров № 4 от 3.01.2000 г.","Верхнедвинский",27754]
[null,22,"“Красный Бор”","Постановление Совета Министров № 982 от 29.07.1997 г.","Верхнедвинский (169) и Россонский (34062)",34231]
[null,"ИТОГО",null,null,null,{"$f":"SUM(F5:F28)","v":166073.47999999998}]

{"sheet":"Республиканские памятники","index":2,"n_rows":81,"n_cols":6,"rows_kept":81,"cut":false,"hidden":false,"merged":[[0,1,0,5],[80,1,80,2],[9,1,9,5],[2,1,2,5]]}
[null,"Памятники природы республиканского значения на 1.01.2014 г."]
[null,"N     п/п","Название геологического памятника природы республиканского значения   ","Дата и номер решения","Район","Площадь, га"]
[null,"Ботанические"]
[null,"1.         ","Дуб черешчатый “Cахоновский”   ","Постановление Минприроды N 40 от 26.04.2007 г.","Верхнедвинский",3.5000000000000003E-2]
[null,"2.         ","Дуб черешчатый “Юстияновский”   ","Постановление Минприроды N 40 от 26.04.2007 г.","Верхнедвинский",7.0000000000000007E-2]
[null,"3.         ","Глубокский дендрологический сад           ","Постановление Минприроды N 47 от 8.05.2007 г.","Глубокский  ",8.1999999999999993]
[null,"4.         ","Дуб-великан “Ситцевский”       ","Постановление Минприроды N 40 от 26.04.2007 г.","Докшицкий    ",6.5000000000000002E-2]
[null,"5.         ","Царь-дуб “Тадулинский”              ","Постановление Минприроды N 40 от 26.04.2007 г.","Лепельский",0.05]
[null,"6.         ","Чистая дубрава “Язненская”      ","Постановление Минприроды N 41 от 5.05.2007 г.","Миорский      ",22]
[null,"Геологические"]
["                                                                                                                                                       ","7.                   ","Валун “Большой  камень” браславский   ","Постановление Минприроды N 25 от 19.03.2007 г. ","Браславский",1.6199999999999999E-3]
[null,"8.                   ","Валун “Камень в придатках” сиповичский ","Постановление Минприроды N 25 от 19.03.2007 г. ","Браславский",1.0499999999999999E-3]
[null,"9.                   ","Валун “Коровий камень” чернишковский    ","Постановление Минприроды N 25 от 19.03.2007 г. ","Браславский",9.5E-4]
[null,"10.                ","Валун “Мартин камень” лайбунский         ","Постановление Минприроды N 25 от 19.03.2007 г. ","Браславский",1.3500000000000001E-3]
[null,"11.                ","Валун \"Пастуший камень\" воропащенский","Постановление Минприроды N 25 от 19.03.2007 г. ","Браславский",1.06E-3]
[null,"12.                ","Валун “Чертов след” якубянский   ","Постановление Минприроды N 25 от 19.03.2007 г. ","Браславский",5.5000000000000003E-4]
[null,"13.                ","Валун “Чудодейственный камень” сташелишский    ","Постановление Минприроды N 25 от 19.03.2007 г. ","Браславский",2.9E-4]
[null,"14.                ","Валун “Большой камень” анисимовичский   ","Постановление Минприроды N 25 от 19.03.2007 г. ","Браславский",6.4999999999999997E-4]
[null,"15.                ","Валун “Чертов камень” ричевский   ","Постановление Минприроды N 25 от 19.03.2007 г. ","Браславский",1.42E-3]
[null,"16.                ","Валун “Большой камень” бутевский        ","Постановление Минприроды N 25 от 19.03.2007 г. ","Браславский",8.8999999999999995E-4]
[null,"17.                ","Валун “Большой камень” струстовский  ","Постановление Минприроды N 25 от 19.03.2007 г. ","Браславский",1.89E-3]
[null,"18.                   ","Валун “Большой камень” дудальский      ","Постановление Минприроды N 25 от 19.03.2007 г. ","Браславский",6.4999999999999997E-4]
[null,"19.                   ","Валун “Большой камень” иказненский      ","Постановление Минприроды N 25 от 19.03.2007 г. ","Браславский",9.8999999999999999E-4]
[null,"20.                ","Валун “Большой камень” леошенский  ","Постановление Минприроды N 25 от 19.03.2007 г. ","Браславский",8.7000000000000001E-4]
[null,"21.                ","Валун “Большой камень” межанский     ","Постановление Минприроды N 25 от 19.03.2007 г. ","Браславский",9.7000000000000005E-4]
[null,"22.                ","Валун “Большой камень” огонский ","Постановление Минприроды N 25 от 19.03.2007 г. ","Браславский",3.8999999999999999E-4]
[null,"23.                ","Валун “Большой камень” пашевичский  ","Постановление Минприроды N 25 от 19.03.2007 г. ","Браславский",1.3999999999999999E-4]
[null,"24.                ","Валун “Стародворский”           ","Постановление Минприроды N 25 от 19.03.2007 г. ","Браславский",8.4000000000000003E-4]
[null,"25.                ","Валуны “Камни Волосо”           ","Постановление Минприроды N 25 от 19.03.2007 г. ","Браславский",6.9999999999999999E-4]
[null,"26.                ","Валуны “Красногорские”         ","Постановление Минприроды N 25 от 19.03.2007 г. ","Браславский",9.7000000000000005E-4]
[null,"27.                   ","Валун “Чертов камень” богдановский      ","Постановление Минприроды N 25 от 19.03.2007 г. ","Браславский",1.0499999999999999E-3]
[null,"28.                ","Валун “Большой камень” бортникский ","Постановление Минприроды N 21 от 18.03.2008 г.","Глубокский ",1.7600000000000001E-3]
[null,"29.                ","Валун “Большой камень” плисский-1  ","Постановление Минприроды N 21 от 18.03.2008 г.","Глубокский ",7.5000000000000002E-4]
[null,"30.                ","Валун “Большой камень” плисский-2  ","Постановление Минприроды N 21 от 18.03.2008 г.","Глубокский ",7.5000000000000002E-4]
[null,"31.                ","Валун “Большой камень” стариновский","Постановление Минприроды N 21 от 18.03.2008 г.","Глубокский ",6.9999999999999999E-4]
[null,"32.                ","Валун “Габрусев камень”             ","Постановление Минприроды N 21 от 18.03.2008 г.","Глубокский ",1.8699999999999999E-3]
[null,"33.                ","Валун “Камень с рыбками”            ","Постановление Минприроды N 21 от 18.03.2008 г.","Глубокский ",3.0000000000000001E-5]
[null,"34.                ","Валун “Чертов камень” велецкий    ","Постановление Минприроды N 21 от 18.03.2008 г.","Глубокский ",6.9999999999999994E-5]
[null,"35.                ","Гряда “Горкинская”  ","Постановление Минприроды N 21 от 18.03.2008 г.","Глубокский ",40]
[null,"36.                ","Холм “Голубинский”  ","Постановление Минприроды N 21 от 18.03.2008 г.","Глубокский ",60]
[null,"37.                ","Холм “Мосарский”    ","Постановление Минприроды N 21 от 18.03.2008 г.","Глубокский ",40]
[null,"38.                ","Валун “Скрипкинский”","Постановление Минприроды N 21 от 18.03.2008 г.","Городокский",9.2000000000000003E-4]
[null,"39.                ","Валун “Хартовский”  ","Постановление Минприроды N 21 от 18.03.2008 г.","Городокский",2.7899999999999999E-3]
[null,"40.                ","Валун “Залученский” ","Постановление Минприроды N 21 от 18.03.2008 г.","Городокский",7.2000000000000005E-4]
[null,"41.                ","Валун “Большой камень” кудаевский  ","Постановление Минприроды N 21 от 18.03.2008 г.","Оршанский  ",3.4499999999999999E-3]
[null,"42.                ","Валун “Захаров камень”             ","Постановление Минприроды N 21 от 18.03.2008 г.","Оршанский  ",6.2E-4]
[null,"43.                ","Валун “Пашинский-1” ","Постановление Минприроды N 21 от 18.03.2008 г.","Оршанский  ",5.2999999999999998E-4]
[null,"44.                ","Валун “Пашинский-2” ","Постановление Минприроды N 21 от 18.03.2008 г.","Оршанский  ",6.4999999999999997E-4]
[null,"45.                ","Валун “Ромальдовский”     ","Постановление Минприроды N 21 от 18.03.2008 г.","Оршанский  ",1.1100000000000001E-3]
[null,"46.                ","Гряда “Орешкинская” ","Постановление Минприроды N 21 от 18.03.2008 г.","Оршанский  ",40]
[null,"47.                ","Обнажение “Адров”   ","Постановление Минприроды N 21 от 18.03.2008 г.","Оршанский  ",5.0000000000000001E-3]
[null,"48.                ","Обнажение “Кобеляки”","Постановление Минприроды N 21 от 18.03.2008 г.","Оршанский  ",30]
[null,"49.                ","Обнажение “Орша”    ","Постановление Минприроды N 21 от 18.03.2008 г.","Оршанский  ",2.5000000000000001E-2]
[null,"50.                ","Обнажение Пашино”  ","Постановление Минприроды N 21 от 18.03.2008 г.","Оршанский  ",20]
[null,"51.                ","Рудаков ров         ","Постановление Минприроды N 21 от 18.03.2008 г.","Оршанский  ",80]
[null,"52.                ","Холм “Ключниковский”","Постановление Минприроды N 21 от 18.03.2008 г.","Оршанский  ",90]
[null,"53.                ","Холм “Медведевский” ","Постановление Минприроды N 21 от 18.03.2008 г.","Оршанский  ",100]
[null,"54.                ","Валун “Святицкий”             ","Постановление Минприроды N 25 от 19.03.2007 г. ","Полоцкий   ",1.4999999999999999E-2]
[null,"55.                ","Скопление валунов “Яново”      ","Постановление Минприроды N 25 от 19.03.2007 г. ","Полоцкий   ",4]
[null,"56.                ","Холм “Волотовка”","Постановление Минприроды N 25 от 19.03.2007 г. ","Полоцкий   ",19]
[null,"57.                ","Холм “Гора Маяк”","Постановление Минприроды N 25 от 19.03.2007 г. ","Поставский ",2.5434000000000001]
[null,"58.                ","Холм “Гора Бояровщина”         ","Постановление Минприроды N 25 от 19.03.2007 г. ","Поставский ",8.6525999999999996]
[null,"59.                ","Холм “Гора Лысая”     ","Постановление Минприроды N 25 от 19.03.2007 г. ","Поставский ",2.2686999999999999]
[null,"60.                ","Валун “Большой камень” завлечанский     ","Постановление Минприроды N 25 от 19.03.2007 г. ","Поставский ",1.7099999999999999E-3]
[null,"61.                ","Валун “Чертов камень” соболковский    ","Постановление Минприроды N 25 от 19.03.2007 г. ","Поставский ",1.32E-3]
[null,"62.                ","Валун “Большой камень” лодосский        ","Постановление Минприроды N 25 от 19.03.2007 г. ","Поставский ",1.0200000000000001E-3]
[null,"63.                   ","Валун “Большой камень” мягунский       ","Постановление Минприроды N 25 от 19.03.2007 г. ","Поставский ",8.5999999999999998E-4]
[null,"64.                ","Валун “Дырявый камень” каптарунский ","Постановление Минприроды N 25 от 19.03.2007 г. ","Поставский ",4.4999999999999999E-4]
[null,"65.                ","Валун “Чертов камень” (“Кравец”)   ","Постановление Минприроды N 25 от 19.03.2007 г. ","Сенненский ",6.1999999999999998E-3]
[null,"66.                ","Валун “Чертов камень”  ","Постановление Минприроды N 25 от 19.03.2007 г. ","Сенненский ",1.5E-3]
[null,"67.                ","Валун “Перун”   ","Постановление Минприроды N 25 от 19.03.2007 г. ","Сенненский ",1.6000000000000001E-3]
[null,"68.                ","Валун “Клин”    ","Постановление Минприроды N 25 от 19.03.2007 г. ","Сенненский ",1.1999999999999999E-3]
[null,"69.                ","Валун  “Сорочинский”          ","Постановление Минприроды N 25 от 19.03.2007 г. ","Ушачский   ",2.9999999999999997E-4]
[null,"70.                ","Валун “Глыбочанский”            ","Постановление Минприроды N 25 от 19.03.2007 г. ","Ушачский   ",4.6000000000000001E-4]
[null,"71.                ","Валуны “Березовские”          ","Постановление Минприроды N 25 от 19.03.2007 г. ","Ушачский   ",1.39E-3]
[null,"72.                ","Валун “Большой камень”","Постановление Минприроды N 25 от 19.03.2007 г. ","Шумилинский",6.1999999999999998E-3]
[null,"73.                ","“Плиговский валун”   ","Постановление Минприроды N 17 от 12.05.2003 г.","Шумилинский",4.4000000000000003E-3]
[null,"74.                ","“Полтевский валун”     ","Постановление Минприроды N 17 от 12.05.2003 г.","Шумилинский",1.1000000000000001E-3]
[null,"75.                ","“Морозовский валун” ","Постановление Минприроды N 17 от 12.05.2003 г.","Шумилинский",1E-3]
[null,"76.                ","“Шевекинский валун” ","Постановление Минприроды N 17 от 12.05.2003 г.","Шумилинский",5.9999999999999995E-4]
[null,"Итого",null,null,null,{"$f":"SUM(F4:F80)","v":566.99702000000013}]

{"sheet":"Местные заказники","index":3,"n_rows":69,"n_cols":6,"rows_kept":69,"cut":false,"hidden":false,"merged":[[1,1,1,5],[63,1,63,5],[68,1,68,2],[28,1,28,5],[10,1,10,5],[3,1,3,5],[51,1,51,5]]}
[]
[null,"Заказники местного значения в Витебской области                                                                                                                                                                             по состоянию на 01.01.2014 г."]
[null,"№ ","Наименование","Кем создан, номер и дата решения","Район","Площадь, га"]
[null,"Ландшафтные"]
[null,1,"“Дядок”","Решение Глубокского райисполкома № 253 от 09.03.2009 г.","Глубокский",118.7]
[null,2,"“Голубицкая пуща”","Решение Глубокского райисполкома № 224 от 23.02.2012 г.","Глубокский",2302.8000000000002]
[null,3,"“Вышедская низина”","Решение Городокского райисполкома №419 от 21.04.2009 г.","Городокский",2724.4]
[null,4,"“Рудня”","Решение Городокского райисполкома № 350 от 30.11.1995 г.","Городокский",400]
[null,5,"“Пышногоры”","Решение Лепельского горисполкома № 292 от 26.05.2004 г.","Лепельский",708]
[null,6,"“Межевская озовая гряда”","Решение Россонского райисполкома № 723 от 10.09.2009 г.","Россонский",111.65]
[null,"Биологические"]
[null,7,"“Витебский”","Решение Витебского райисполкома № 343 от 3.03.2009 г.","Витебский",158]
[null,8,"“Придвинье”","Решение Витебского райисполкома № 343 от 3.03.2009 г.","Витебский",321]
[null,9,"“Большая Лука”","Решение Витебского райисполкома № 667 от 30.05.2012 г.","Витебский",481.76]
[null,10,"“Дымовщина”","Решение Витебского райисполкома № 667 от 30.05.2012 г.","Витебский",157.83000000000001]
[null,11,"“Чертова борода”","Решение Витебского райисполкома № 97 от 29.01.2011 г. ","Витебский",58.3]
[null,12,"“Холмогоры”","Решение Глубокского райисполкома № 224 от 23.02.2012 г.","Глубокский",176]
[null,13,"“Яново”","Решение Городокского райисполкома № 350 от 30.11.1995 г.","Городокский",200]
[null,14,"“Сурмино”","Решение Городокского райисполкома № 1462 от 19.12.2007 г. ","Городокский",2294]
[null,15,"“Езерище”","Решение Городокского райисполкома № 1464 от 19.12.2007 г.","Городокский",1700]
[null,16,"“Ловать” ","Решение Городокского райисполкома № 270 27.07.1997 г.","Городокский",6600]
[null,17,"“Зуйка”","Решение Докшицкого райисполкома № 1584 от 27.11.2008 г.","Докшицкий",23]
[null,18,"“Озеры” ","Решение Дубровенского райисполкома № 999 от 08.12.2008г.","Дубровенский",63]
[null,19,"“Лынтупский”","Решение Поставского райисполкома № 938 от 14.09.2009 г.","Поставский",112.2]
[null,20,"“Медвежий лук”","Решение Толочинского райисполкома № 442 от 24.06.2008 г.","Толочинский",31.6]
[null,21,"“Липники”","Решение Чашникского райисполкома № 318 от 8.11.1999 г.","Чашницкий",1.3]
[null,22,"“Зеленое Лядо”","Решение Чашникского райисполкома № 318 от 8.11.1999 г.","Чашницкий",86.2]
[null,23,"“Сосняги”","Решение Чашникского райисполкома № 318 от 8.11.1999 г.","Чашницкий",5.0999999999999996]
[null,"Гидрологические"]
[null,24,"“Соржицкий Мох”","Решение Бешенковичского райисполкома № 1012 от 10.09.2010 г. ","Бешенковичский",864.3]
[null,25,"“Лапы”","Решение Бешенковичского райисполкома № 1012 от 10.09.2010 г. ","Бешенковичский",62]
[null,26,"“Гурбы”","Решение Глубокского райисполкома № 224 от 23.02.2012 г.","Глубокский",418.4]
[null,27,"“Тиостенский”","Решение Городокского райисполкома № 419 от 21.04.2009 г.","Городокский",557.67999999999995]
[null,28,"“Виржи” ","Решение Докшицкого райисполкома № 1584 от 27.11.2008 г.","Докшицкий",695]
[null,29,"“Отрубок” ","Решение Докшицкого райисполкома № 1584 от 27.11.2008 г.","Докшицкий",100]
[null,30,"“Вереньки” ","Решение Докшицкого райисполкома № 1584 от 27.11.2008 г.","Докшицкий",120]
[null,31,"“Заборье” ","Решение Докшицкого райисполкома № 1584 от 27.11.2008 г.","Докшицкий",910]
[null,32,"“Подомхи” ","Решение Докшицкого райисполкома № 1584 от 27.11.2008 г.","Докшицкий",264]
[null,33,"“Чечуки” ","Решение Докшицкого райисполкома № 1584 от 27.11.2008 г.","Докшицкий",334]
[null,34,"“Жуковское”","Решение Дубровенского райисполкома № 999 от 08.12.2008г.","Дубровенский",263]
[null,35,"“Пунище”","Решение Дубровенского райисполкома № 999 от 08.12.2008г.","Дубровенский",63]
[null,36,"“Осинторфский”","Решение Дубровенского райисполкома №349 от 22.10.1993г.","Дубровенский",5920]
[null,37,"“Какисино”","Решение Лепельского райисполкома № 1203 от 19.12.2008 г.","Лепельский",78]
[null,38,"“Жада” (Стречно)","Решение Миорского райисполкома № 169 от 31.03.2000 г.  ","Миорский",2300]
[null,39,"“Замошанский Мох”","Решение Сенненского райисполкома № 85 от 29.02.1996 г.","Сенненский",700]
[null,40,"“Капланский Мох”","Решение Сенненского райисполкома № 85 от 29.02.1996 г.","Сенненский",1250]
[null,41,"“Гуринское”","Решение Сенненского райисполкома № 85 от 29.02.1996 г.","Сенненский",141]
[null,42,"“Скрипутёво”","Решение Толочинского райисполкома № 441 от 24.06.2008 г.","Толочинский",27]
[null,43,"“Черствятский”","Решение Ушачского райисполкома № 843 от 28.10.2008 г.","Ушачский",72]
[null,44,"“Глыбочанский” ","Решение Ушачского райисполкома № 843 от 28.10.2008 г.","Ушачский",270]
[null,45,"Торфяной заказник “Лесное”","Решение Шарковщинского райисполкома № 108 от 24.08.1994 г.","Шарковщинский",4088.8]
[null,"Геологические"]
[null,46,"“Янельская котловина”","Решение Браславского райисполкома № 234 от 12.05.2000 г.","Браславский",150]
[null,47,"“Малиновщинские возвышенности”","Решение Глубокского райисполкома № 224 от 23.02.2012 г.","Глубокский",372.8]
[null,48,"Родник “Криница Святого Яна”","Решение Миорского райисполкома № 803 от 23.09.2011 г. ","Миорский",250]
[null,49,"“Копцевская озовая гряда”","Решение Миорского райисполкома № 803 от 23.09.2011 г. ","Миорский",210]
[null,50,"“Волчая гора”","Решение Миорского райисполкома № 803 от 23.09.2011 г. ","Миорский",120]
[null,51,"“Белаазерскія выдмы”","Решение Полоцкого райисполкома № 107 от 18.02.2011 г.","Полоцкий",2900]
[null,52,"“Града замак Глінскі”","Решение Полоцкого райисполкома № 107 от 18.02.2011 г.","Полоцкий",580]
[null,53,"“Гара гарада Гамоўшчынская”","Решение Полоцкого райисполкома № 107 от 18.02.2011 г.","Полоцкий",195]
[null,54,"“Найвышейшае месца Полаччыны рабчонкі”","Решение Полоцкого райисполкома № 107 от 18.02.2011 г.","Полоцкий",140]
[null,55,"“Полесские пригорки”","Решение Поставского райисполкома № 938 от 14.09.2009 г.","Поставский",150]
[null,56,"“Сергеевичские холмы”","Решение Поставского райисполкома № 938 от 14.09.2009 г.","Поставский",150]
[null,"Водно-болотные"]
[null,57,"“Клетище” ","Решение Лепельского райисполкома № 1203 от 19.12.2008 г.","Лепельский",387]
[null,58,"“Вилейты” ","Решение Постаского райисполкома № 440 от 20.05.2013 г.","Чашницкий",5101]
[null,59,"“Хвощевое” ","Решение Чашникского райисполкома № 73 от 8.03.1995 г.","Чашницкий",121.9]
[null,60,"“Воронуха”","Решение Шумилинского райисполкома № 821 от 03.12.2012 г. ","Шумилинский ",775]
[null,"ИТОГО",null,null,null,{"$f":"SUM(F5:F68)","v":49935.720000000008}]

{"sheet":"Местные памятники","index":4,"n_rows":169,"n_cols":10,"rows_kept":169,"cut":false,"hidden":false,"merged":[[168,1,168,2],[1,1,1,5],[3,1,3,5],[32,1,32,5],[145,1,145,5]]}
[]
[null,"Памятники природы местного значения в Витебской области                                                                                                                                                                                                                                   по состоянию на 01.01.2014 г."]
[null,"№  п/п","Наименование","Кем создан, номер и дата решения","Район","Площадь, га"]
[null,"Ботанические"]
[null,1,"“Бешенковичский дворцово-парковый ансамбль”","Решение Бешенковичского райисполкома № 1012 от 10.09.2010 г. ","Бешенковичский",9.1999999999999993]
[null,2,"“Бочейковсий усадебно-парковый ансамбль”","Решение Бешенковичского райисполкома № 1012 от 10.09.2010 г. ","Бешенковичский",10]
[null,3,"“Парк “Соломинка” в н.п. Добригоры” ","Решение Бешенковичского райисполкома № 1012 от 10.09.2010 г. ","Бешенковичский",8]
[null,4,"“Усадебный комплекс в н.п. Двор Низголово”","Решение Бешенковичского райисполкома № 1012 от 10.09.2010 г. ","Бешенковичский",7.5]
[null,5,"Старинный парк “Сарьянский”","Решение Верхнедвинского райисполкома № 523 от 10.06.2011 г. ","Верхнедвинский ",20]
[null,6,"Старинный парк “Освейский”","Решение Верхнедвинского райисполкома № 523 от 10.06.2011 г. ","Верхнедвинский ",23]
[null,7,"Городской парк Верхнедвинска","Решение Верхнедвинского райисполкома № 523 от 10.06.2011 г. ","Верхнедвинский ",14.2]
[null,8,"Дубовые насаждения","Решение Верхнедвинского райисполкома № 523 от 10.06.2011 г. ","Верхнедвинский ",56]
[null,9,"Дубовые насаждения","Решение Верхнедвинского райисполкома № 523 от 10.06.2011 г. ","Верхнедвинский ",32]
[null,10,"Дубовые насаждения","Решение Верхнедвинского райисполкома № 523 от 10.06.2011 г. ","Верхнедвинский ",62]
[null,11,"Дендропарк Верхнедвинского лесхоза","Решение Верхнедвинского райисполкома № 523 от 10.06.2011 г. ","Верхнедвинский ",6.3]
[null,12,"Лужеснянский дендропарк","Решение Витебского райисполкома № 667 от 30.05.2012 г.","Витебский",8.7799999999999994]
[null,13,"Рубовский","Решение Витебского райисполкома № 1075 от 20.09.2005 г.","Витебский",2.1]
[null,14,"Парк “Залесье”","Решение Глубокского райисполкома № 224 от 23.02.2012 г.","Глубокский",9]
[null,15,"Дуб-великан “Волат”","Решение Городокского райисполкома № 193 от 7.07.1993 г.","Городокский ",2]
[null,16,"Усадьба “Двухполье”","Решение Городокского райисполкома № 486 от 22.09.1999 г.","Городокский",2]
[null,17,"Городской парк","Решение Городокского райисполкома № 486 от 22.09.1999 г.","Городокский",1.5]
[null,18,"Городской парк “Полуостров”","Решение Миорского райисполкома № 803 от 23.09.2011 г. ","Миорский",4.3]
[null,19,"“Межево”","Решение Оршанского райисполкома № 1101 от 11.12.2009 г. ","Оршанский ",8]
[null,20,"“Высокое”","Решение Оршанского райисполкома № 1101 от 11.12.2009 г. ","Оршанский",4.7]
[null,21,"“Дендросад”","Решение Оршанского райисполкома № 214 от 15.09.1992 г.","Оршанский",6]
[null,22,"Рацевский парк","Решение Толочинского райисполкома № 443 от 05.10.1999 г.","Толочинский",10]
[null,23,"Юзефполье","Решение Толочинского райисполкома № 444 от 05.10.1999 г.","Толочинский",7]
[null,24,"“Сосна обыкновенная”","Решение Шумилинского райисполкома № 821 от 03.12.2012 г. ","Шумилинский",2.0000000000000001E-4]
[null,25,"“Сосна обыкновенная”","Решение Шумилинского райисполкома № 821 от 03.12.2012 г. ","Шумилинский",2.0000000000000001E-4]
[null,26,"“Осина (тополь дрожащий)”","Решение Шумилинского райисполкома № 821 от 03.12.2012 г. ","Шумилинский",2.0000000000000001E-4]
[null,27,"“Липа мелколистная”","Решение Шумилинского райисполкома № 821 от 03.12.2012 г. ","Шумилинский",2.0000000000000001E-4]
[null,28,"“Дубовая аллея”","Решение Шумилинского райисполкома № 821 от 03.12.2012 г. ","Шумилинский",0.11550000000000001]
[null,"Геологические"]
[null,29,"“Сарьянская низменность”","Решение Верхнедвинского райисполкома № 523 от 10.06.2011 г. ","Верхнедвинский",0.8]
[null,30,"“Освейская возвыщенность”","Решение Верхнедвинского райисполкома № 523 от 10.06.2011 г. ","Верхнедвинский",0.39]
[null,31,"“Росицкая низменность”","Решение Верхнедвинского райисполкома № 523 от 10.06.2011 г. ","Верхнедвинский",0.28999999999999998]
[null,32,"“Стрешницкий массив возвышенностей”","Решение Верхнедвинского райисполкома № 523 от 10.06.2011 г. ","Верхнедвинский",0.24]
[null,33,"“Городиловская гора”","Решение Верхнедвинского райисполкома № 523 от 10.06.2011 г. ","Верхнедвинский",0.16]
[null,34,"“Освейская долина прорыва”","Решение Верхнедвинского райисполкома № 523 от 10.06.2011 г. ","Верхнедвинский",0.13]
[null,35,"“Большой камень Харабровский”","Решение Верхнедвинского райисполкома № 1002 от 29.12.2008 г.","Верхнедвинский",4.0000000000000001E-3]
[null,36,"“Большой камень Дерновичский”","Решение Верхнедвинского райисполкома № 1002 от 29.12.2008 г.","Верхнедвинский",5.0000000000000001E-3]
[null,37,"“Большой камень Перекский”","Решение Верхнедвинского райисполкома № 1002 от 29.12.2008 г.","Верхнедвинский",5.0000000000000001E-3]
[null,38,"“Сарьянский большой камень”","Решение Верхнедвинского райисполкома № 1002 от 29.12.2008 г.","Верхнедвинский",6.0000000000000001E-3]
[null,39,"“Суражские обнажения”","Решение Витебского райисполкома № 667 от 30.05.2012 г.","Витебский",7.85]
[null,40,"“Ковалевская гора”","Решение Глубокского райисполкома № 224 от 23.02.2012 г.","Глубокский",156.6]
[null,41,"“Горвацкий кам”","Решение Глубокского райисполкома № 224 от 23.02.2012 г.","Глубокский",60]
[null,42,"“Зябковский пригорок”","Решение Глубокского райисполкома № 224 от 23.02.2012 г.","Глубокский",13]
[null,43,"“Медведковский оз”","Решение Глубокского райисполкома № 224 от 23.02.2012 г.","Глубокский",0.1]
[null,44,"“Большой камень Давыдковский”","Решение Глубокского райисполкома № 224 от 23.02.2012 г.","Глубокский",5.9999999999999995E-4]
[null,45,"“Камень Прошковский”","Решение Глубокского райисполкома № 224 от 23.02.2012 г.","Глубокский",2.0000000000000001E-4]
[null,46,"“Камень Голубицкий”","Решение Глубокского райисполкома № 224 от 23.02.2012 г.","Глубокский",5.9999999999999995E-4]
[null,47,"“Камень Припернянский”","Решение Глубокского райисполкома № 224 от 23.02.2012 г.","Глубокский",5.9999999999999995E-4]
[null,48,"Валуны","Решение Городокского райисполкома № 18 от 28.01.1993 г.","Городокский",0.01]
[null,49,"Валуны","Решение Городокского райисполкома № 18 от 28.01.1993 г.","Городокский",0.01]
[null,50,"“Удебненская гряда”","Решение Городокского райисполкома № 350 от 30.11.1995 г. ","Городокский",1]
[null,51,"“Пальминский большой камень”","Решение Городокского райисполкома № 350 от 30.11.1995 г.","Городокский",0.01]
[null,52,"“Москаленятский валун”","Решение Городокского райисполкома № 350 от 30.11.1995 г.","Городокский",0.01]
[null,53,"“Чернявский валун”","Решение Городокского райисполкома № 350 от 30.11.1995 г.","Городокский",0.01]
[null,54,"“Яновский каменный кряж и валун”","Решение Городокского райисполкома № 350 от 30.11.1995 г.","Городокский",0.01]
[null,55,"“Мининские валуны”","Решение Городокского райисполкома № 350 от 30.11.1995 г.","Городокский",0.01]
[null,56,"“Гузовские  валуны”","Решение Городокского райисполкома № 350 от 30.11.1995 г.","Городокский",0.01]
[null,57,"“Кожемякинские  валуны”","Решение Городокского райисполкома № 350 от 30.11.1995 г.","Городокский",0.01]
[null,58,"“Филимоновские  валуны”","Решение Городокского райисполкома № 350 от 30.11.1995 г.","Городокский",0.01]
[null,59,"“Новобелицкие  валуны”","Решение Городокского райисполкома № 350 от 30.11.1995 г.","Городокский",0.01]
[null,60,"“Киселёвские валуны”","Решение Городокского райисполкома № 350 от 30.11.1995 г.","Городокский",0.01]
[null,61,"“Горянская гряда”","Решение Миорского райисполкома № 803 от 23.09.2011 г. ","Миорский",100]
[null,62,"“Буяновский погурок”","Решение Миорского райисполкома № 803 от 23.09.2011 г. ","Миорский",90]
[null,63,"“Новополоцкие погурки”","Решение Миорского райисполкома № 803 от 23.09.2011 г. ","Миорский",80]
[null,64,"“Тарелочный камень Язненский”","Решение Миорского райисполкома № 803 от 23.09.2011 г. ","Миорский",0.01]
[null,65,"“Бертовщинский Большой Камень”","Решение Миорского райисполкома № 803 от 23.09.2011 г. ","Миорский",0.01]
[null,66,"“Березовский Большой Камень”","Решение Миорского райисполкома № 803 от 23.09.2011 г. ","Миорский",0.01]
[null,67,"“Луповщинский Большой Камень”","Решение Миорского райисполкома № 803 от 23.09.2011 г. ","Миорский",0.01]
[null,68,"“Мозылевский Большой Камень”","Решение Миорского райисполкома № 803 от 23.09.2011 г. ","Миорский",0.01]
[null,69,"“Янопольский Большой Камень”","Решение Миорского райисполкома № 803 от 23.09.2011 г. ","Миорский",0.01]
[null,70,"“Гирьятский Большой Камень” ","Решение Миорского райисполкома № 803 от 23.09.2011 г. ","Миорский",0.01]
[null,71,"“Симков Кладовой Камень”","Решение Миорского райисполкома № 803 от 23.09.2011 г. ","Миорский",0.01]
[null,72,"“Ражневский Валун”","Решение Миорского райисполкома № 803 от 23.09.2011 г. ","Миорский",0.01]
[null,73,"“Перебродский Валун Следовик”","Решение Миорского райисполкома № 803 от 23.09.2011 г. ","Миорский ",0.01]
[null,74,"Родник “Святая вода Дехтяревская”","Решение Миорского райисполкома № 803 от 23.09.2011 г. ","Миорский",1.5]
[null,75,"Кублищинский Большой Камень","Решение Миорского райисполкома № 803 от 23.09.2011 г. ","Миорский",0.01]
[null,76,"Новопогостский Большой Камень","Решение Миорского райисполкома № 803 от 23.09.2011 г. ","Миорский",0.01]
[null,77,"Родник “Криница”","Решение Миорского райисполкома № 803 от 23.09.2011 г. ","Миорский",0.01]
[null,78,"“Корлиновские холмы”","Решение Оршанского райисполкома № 277 от 18.03.2011 г.","Оршанский",25]
[null,79,"“Адровские овраги”","Решение Оршанского райисполкома № 277 от 18.03.2011 г.","Оршанский",1.5]
[null,80,"“Краснохарьковская долина”","Решение Оршанского райисполкома № 277 от 18.03.2011 г.","Оршанский",5]
[null,81,"“Кобелякские пороги”","Решение Оршанского райисполкома № 277 от 18.03.2011 г.","Оршанский",3.7,null,"Решение Оршанского райисполкома № 184 от 09.04.1996 г.","Оршанский",1.5]
[null,82,"“Алантьевская гряда”","Решение Оршанского райисполкома № 277 от 18.03.2011 г.","Оршанский",90.5]
[null,83,"“Гарадзецкія пагоркі Туржецкія","Решение Полоцкого райисполкома № 107 от 18.02.2011 г.","Полоцкий",80]
[null,84,"“Гара падлозенка Гомельская”","Решение Полоцкого райисполкома № 107 от 18.02.2011 г.","Полоцкий",32]
[null,85,"“Гара гарадзішча Званская”","Решение Полоцкого райисполкома № 107 от 18.02.2011 г.","Полоцкий",18]
[null,86,"“Гара замак Вараніцкая”","Решение Полоцкого райисполкома № 107 от 18.02.2011 г.","Полоцкий",13]
[null,87,"“Гара гарада Замошская”","Решение Полоцкого райисполкома № 107 от 18.02.2011 г.","Полоцкий",8.5]
[null,88,"“Вялікі камень Бікульніцкі”","Решение Полоцкого райисполкома № 107 от 18.02.2011 г.","Полоцкий",1.4999999999999999E-2]
[null,89,"“Вялікі камень Косараўскі”","Решение Полоцкого райисполкома № 107 от 18.02.2011 г.","Полоцкий",1.4999999999999999E-2]
[null,90,"“Пярун камень Полацкі”","Решение Полоцкого райисполкома № 107 от 18.02.2011 г.","Полоцкий",1.4999999999999999E-2]
[null,91,"“Вялікі камень Глінскі”","Решение Полоцкого райисполкома № 107 от 18.02.2011 г.","Полоцкий",1.4999999999999999E-2]
[null,92,"“Вялікі камень Туржэцкі”","Решение Полоцкого райисполкома № 107 от 18.02.2011 г.","Полоцкий",1.4999999999999999E-2]
[null,93,"“Святая студня (святуха) Вуглаўская”","Решение Полоцкого райисполкома № 107 от 18.02.2011 г.","Полоцкий",2]
[null,94,"“Барысаў камень Полацкі” ","Решение Полоцкого райисполкома № 214 от 23.05.2001 г.","Полоцкий",1.4999999999999999E-2]
[null,95,"“Гора Большая”","Решение Поставского райисполкома № 938 от 14.09.2009 г.","Поставский",16]
[null,96,"“Жуперская Гряда”","Решение Поставского райисполкома № 938 от 14.09.2009 г.","Поставский",10]
[null,97,"“Бородинский Пригорок”","Решение Поставского райисполкома № 938 от 14.09.2009 г.","Поставский",30]
[null,98,"“Чернецкий пригорок”","Решение Поставского райисполкома № 938 от 14.09.2009 г.","Поставский",20]
[null,99,"“Спорицкая ледниковая ложбина”","Решение Поставского райисполкома № 938 от 14.09.2009 г.","Поставский",1450]
[null,100,"“Карагач”","Решение Поставского райисполкома № 938 от 14.09.2009 г.","Поставский",500]
[null,101,"“Саранчанские гряды”","Решение Поставского райисполкома № 938 от 14.09.2009 г.","Поставский",350]
[null,102,"“Гора Гороватка”","Решение Поставского райисполкома № 938 от 14.09.2009 г.","Поставский",2]
[null,103,"“Большой камень Трапшевицкий”","Решение Поставского райисполкома № 938 от 14.09.2009 г.","Поставский",0.01]
[null,104,"“Большой камень Зыбалишкинский”","Решение Поставского райисполкома № 938 от 14.09.2009 г.","Поставский",0.01]
[null,105,"“Большой камень Чашковщинский”","Решение Поставского райисполкома № 938 от 14.09.2009 г.","Поставский",0.01]
[null,106,"“Большой камень Камайский”","Решение Поставского райисполкома № 938 от 14.09.2009 г.","Поставский",0.01]
[null,107,"“Большой камень Казнадеюшский”","Решение Поставского райисполкома № 938 от 14.09.2009 г.","Поставский",0.01]
[null,108,"“Озовая гряда Рыли”","Решение Россонского райисполкома № 1063 от 31.12.2009 г.","Россонский",48]
[null,109,"“Гора Гвоздиха”","Решение Россонского райисполкома № 1063 от 31.12.2009 г.","Россонский",50]
[null,110,"“Большой камень Россонский”","Решение Россонского райисполкома № 1063 от 31.12.2009 г.","Россонский",1.6199999999999999E-3]
[null,111,"“Большой камень Глазковский”","Решение Россонского райисполкома № 1063 от 31.12.2009 г.","Россонский",1.8699999999999999E-3]
[null,112,"“Большой камень Фоминский”","Решение Россонского райисполкома № 1063 от 31.12.2009 г.","Россонский",1.67E-3]
[null,113,"“Локтевский большой камень”","Решение Россонского райисполкома № 1063 от 31.12.2009 г.","Россонский",1.0200000000000001E-3]
[null,114,"“Межновский большой камень”","Решение Россонского райисполкома № 1063 от 31.12.2009 г.","Россонский",1.1900000000000001E-3]
[null,115,"“Грушин камень Заозерский”","Решение Россонского райисполкома № 1063 от 31.12.2009 г.","Россонский",8.5999999999999998E-4]
[null,116,"“Валун Лапещинский”","Решение Россонского райисполкома № 1063 от 31.12.2009 г.","Россонский",7.3999999999999999E-4]
[null,117,"“Кедровский камень Крестовский”","Решение Россонского райисполкома № 1063 от 31.12.2009 г.","Россонский",7.3999999999999999E-4]
[null,118,"“Лидин камень Гречушынский”","Решение Россонского райисполкома № 1063 от 31.12.2009 г.","Россонский",7.2000000000000005E-4]
[null,119,"“Валун Высотковский”","Решение Россонского райисполкома № 1063 от 31.12.2009 г.","Россонский",8.8999999999999995E-4]
[null,120,"“Валун Заозерский”","Решение Россонского райисполкома № 1063 от 31.12.2009 г.","Россонский",8.0000000000000004E-4]
[null,121,"“Пилипенский большой камень”","Решение Россонского райисполкома № 1063 от 31.12.2009 г.","Россонский",7.9000000000000001E-4]
[null,122,"“Избищенский большой камень”","Решение Россонского райисполкома № 1063 от 31.12.2009 г.","Россонский",7.1000000000000002E-4]
[null,123,"“Валун Гречушинский”","Решение Россонского райисполкома № 1063 от 31.12.2009 г.","Россонский",6.0999999999999997E-4]
[null,124,"“Цыбульский камень Заозерский”","Решение Россонского райисполкома № 1063 от 31.12.2009 г.","Россонский",6.8099999999999996E-4]
[null,125,"“Сырный камень Россонский”","Решение Россонского райисполкома № 1063 от 31.12.2009 г.","Россонский",3.6000000000000002E-4]
[null,126,"“Шатанский камень Россонский”","Решение Россонского райисполкома № 1063 от 31.12.2009 г.","Россонский",2.5000000000000001E-4]
[null,127,"Валун “Змеев камень”","Решение Чашникского райисполкома № 15 от 4.01.2012 г","Чашникский",0.02]
[null,128,"Камоид “Чиреи”","Решение Чашникского райисполкома № 15 от 4.01.2012 г","Чашникский",0.88]
[null,129,"“Гора Федотова”","Решение Шарковщинского райисполкома № 834 от 06.12.2011 г.","Шарковщинский",180]
[null,130,"“Гряда Зенкевича”","Решение Шарковщинского райисполкома № 834 от 06.12.2011 г.","Шарковщинский",80]
[null,131,"“Быстрицкая долина”","Решение Шарковщинского райисполкома № 834 от 06.12.2011 г.","Шарковщинский",60]
[null,132,"“Кушлевская долина прорыва”","Решение Шарковщинского райисполкома № 834 от 06.12.2011 г.","Шарковщинский",50]
[null,133,"“Местачковая долина”","Решение Шарковщинского райисполкома № 834 от 06.12.2011 г.","Шарковщинский",50]
[null,134,"“Большой камень Жуки-Ложновский”","Решение Шарковщинского райисполкома № 834 от 06.12.2011 г.","Шарковщинский",0.01]
[null,135,"“Валун Дубовковский”","Решение Шарковщинского райисполкома № 834 от 06.12.2011 г.","Шарковщинский",0.01]
[null,136,"“Большой камень Пашковский”","Решение Шарковщинского райисполкома № 834 от 06.12.2011 г.","Шарковщинский",0.01]
[null,137,"“Большой камень Дубовковский”","Решение Шарковщинского райисполкома № 834 от 06.12.2011 г.","Шарковщинский",0.01]
[null,138,"“Большой камень Лапуновский”","Решение Шарковщинского райисполкома № 834 от 06.12.2011 г.","Шарковщинский",0.01]
[null,139,"“Бешеный камень Гридюшкинский”","Решение Шарковщинского райисполкома № 834 от 06.12.2011 г.","Шарковщинский",0.01]
[null,140,"“Камень Иванский с надписью”","Решение Шарковщинского райисполкома № 834 от 06.12.2011 г.","Шарковщинский",0.01]
[null,"Гидрологические"]
[null,141,"“Никульский родник”","Решение  Браславского райисполкома № 21 от 15.01.2007 г.","Браславский",2.33]
[null,142,"“Родник Лазенки”","Решение  Браславского райисполкома № 21 от 15.01.2007 г.","Браславский",1.03]
[null,143,"“Родник  Окменица”","Решение  Браславского райисполкома № 21 от 15.01.2007 г.","Браславский",3.66]
[null,144,"“Толстогорский родник”","Решение  Браславского райисполкома № 21 от 15.01.2007 г.","Браславский",2.1419999999999999]
[null,145,"“Родник-исток Никли” ","Решение  Браславского райисполкома № 21 от 15.01.2007 г.","Браславский",4.59]
[null,146,"“Карасинский родник”","Решение  Браславского райисполкома № 21 от 15.01.2007 г.","Браславский",1.43]
[null,147,"“Родник Петкун”","Решение  Браславского райисполкома № 21 от 15.01.2007 г.","Браславский",1.1499999999999999]
[null,148,"Родник агрогородка Кохановичи ","Решение Верхнедвинского райисполкома № 523 от 10.06.2011 г. ","Верхнедвинский ",0.01]
[null,149,"Родник в урочище “Петровщина” ","Решение Верхнедвинского райисполкома № 523 от 10.06.2011 г. ","Верхнедвинский",0.01]
[null,150,"“Бассейн реки Чижовка”","Решение Дубровенского райисполкома № 216 от 18.04.1995г.","Дубровенский",5]
[null,151,"“Территория карьера льнозавода”","Решение Дубровенского райисполкома № 216 от 18.04.1995г.","Дубровенский",8]
[null,152,"“Бородинцевская криница”","Решение Дубровенского райисполкома № 281 от 29.09.1999 г.","Дубровенский",0.01]
[null,153,"“Гомельский родник”","Решение Полоцкого райисполкома № 107 от 18.02.2011 г.","Полоцкий",1]
[null,154,"“Щербишские родники”","Решение Поставского райисполкома № 734 от 31.12.1998 г.","Поставский",0.3]
[null,155,"“Лазарава крыніца”","Решение Россонского райисполкома № 9 от 23.11.1999г.","Россонский",0.01]
[null,156,"Родник “Капличка”","Решение Сенненского райисполкома № 22 от 19.11.1992 г.","Сенненский",1.7999999999999999E-2]
[null,157,"Родник “Песчанка”","Решение Сенненского райисполкома № 22 от 19.11.1992 г.","Сенненский",2.8000000000000001E-2]
[null,158,"Родник “Барковщина”","Решение Ушачского райисполкома  № 156 от 06.07.1999 г. ","Ушачский",1]
[null,159,"Родник “Иезус”","Решение Чашникского райисполкома № 15 от 4.01.2012 г","Чашникский",1.3]
[null,160,"Родник  “Пятенка”","Решение Шумилинского райисполкома № 821 от 03.12.2012 г. ","Шумилинский ",1.6E-2]
[null,161,"Родник “Свято-Успенский колодец”","Решение Шумилинского райисполкома № 821 от 03.12.2012 г. ","Шумилинский ",2.5000000000000001E-3]
[null,162,"Родник “Святой колодец”","Решение Шумилинского райисполкома № 821 от 03.12.2012 г. ","Шумилинский ",2.5000000000000001E-3]
[null,"ИТОГО",null,null,null,{"$f":"SUM(F5:F168)","v":4035.392821000004}]

{"sheet":"Сводная таблица","index":5,"n_rows":12,"n_cols":10,"rows_kept":12,"cut":false,"hidden":false,"merged":[[11,1,11,2],[2,3,3,4],[1,1,1,8],[2,5,3,6],[2,7,3,8],[2,1,4,1],[2,2,4,2]]}
[]
[null,"Сводная ведомость особо охраняемых                                                                                                                                                           природных территорий Витебской области на 1.01.2014 г."]
[null,"№ п/п","Виды особо охраняемых территорий и объектов","Количество охраняемых территорий и объектов",null,"Общая площадь                          (тыс. га)",null,"% от территории области"]
[]
[null,null,null,2012,2013,2012,2013,2012,2013]
[null,1,"Заповедники",1,1,66.201999999999998,66.201999999999998,{"$f":"F6/40.04839","v":1.6530502224933388},{"$f":"G6/40.04839","v":1.6530502224933388}]
[null,2,"Национальные парки",2,2,65.551000000000002,65.551000000000002,{"$f":"F7/40.04839","v":1.6367948873849862},{"$f":"G7/40.04839","v":1.6367948873849862},{"$f":"G6+G7","v":131.75299999999999}]
[null,3,"Заказники республиканского значения",22,22,166.07,{"$f":"'Республиканские заказники.'!F29/1000","v":166.07347999999999},4.1467334891614867,4.1468203840404074]
[null,4,"Заказники местного значения",60,{"$f":"'Местные заказники'!B68","v":60},49.51,{"$f":"'Местные заказники'!F69/1000","v":49.935720000000011},1.2362544411897707,1.2468845813776788]
[null,5,"Памятники природы республиканского значения",76,76,0.56999999999999995,{"$f":"'Республиканские памятники'!F81/1000","v":0.56699702000000018},1.4232781892106024E-2,1.4157798103744E-2]
[null,6,"Памятники природы местного значения",165,{"$f":"'Местные памятники'!B168","v":162},5.17,{"$f":"'Местные памятники'!F169/1000","v":4.0353928210000038},0.12909382874068095,0.10076292257940966]
[null,"ИТОГО",null,{"$f":"SUM(D6:D11)","v":326},{"$f":"SUM(E6:E11)","v":323},{"$f":"SUM(F6:F11)","v":353.07299999999998},{"$f":"SUM(G6:G11)","v":352.36458984099994},8.8161596508623692,8.7984707959795632]